fUST/lending_fUST_20250101
["ID","MTS","AMOUNT","RATE_DAILY","PERIOD"]
[347374613,1735744238220,-280827.68568762,0.000175,2]
[347374615,1735744238229,-151.0,0.000175,2]
[347374617,1735744238239,-151.0,0.000175,2]
[347374619,1735744238248,-151.0,0.000175,2]
[347374620,1735744238258,-151.0,0.000175,2]
[347374621,1735744238267,-151.0,0.000175,2]
[347374622,1735744238277,-1004647.98404916,0.000175,2]
[347374624,1735744238289,-466846.67595084,0.000175,2]
[347374626,1735744238298,-266.290232,0.000175,2]
[347374628,1735744238311,-266.290232,0.000175,2]
[347374630,1735744238322,-266.290232,0.000175,2]
[347374632,1735744238331,-266.290232,0.000175,2]
[347374634,1735744238341,-266.290232,0.000175,2]
[347374636,1735744238350,-266.290232,0.000175,2]
[347374639,1735744238360,-151.0,0.000175,2]
[347374642,1735744238370,-151.0,0.000175,2]
[347374645,1735744238382,-221.289391,0.000175,2]
[347374647,1735744238392,-151.0,0.000175,2]
[347374649,1735744238401,-151.0,0.000175,2]
[347374651,1735744238411,-151.0,0.000175,2]
[347374653,1735744238421,-266.282191,0.000175,2]
[347374655,1735744238431,-266.282191,0.000175,2]
[347374657,1735744238441,-266.282191,0.000175,2]
[347374659,1735744238452,-266.282191,0.000175,2]
[347374661,1735744238461,-266.282191,0.000175,2]
[347374663,1735744238470,-266.282191,0.000175,2]
[347374665,1735744238479,-151.0,0.000175,2]
[347374667,1735744238489,-151.0,0.000175,2]
[347374669,1735744238498,-151.0,0.000175,2]
[347374671,1735744238507,-151.0,0.000175,2]
[347374673,1735744238518,-151.0,0.000175,2]
[347374675,1735744238527,-151.0,0.000175,2]
[347374677,1735744238537,-151.0,0.000175,2]
[347374679,1735744238546,-151.0,0.000175,2]
[347374681,1735744238555,-151.0,0.000175,2]
[347374683,1735744238565,-151.0,0.000175,2]
[347374685,1735744238574,-151.0,0.000175,2]
[347374686,1735744238583,-151.0,0.000175,2]
[347374687,1735744238593,-269.813253,0.000175,2]
[347374689,1735744238602,-151.0,0.000175,2]
[347374691,1735744238611,-151.0,0.000175,2]
[347374693,1735744238620,-151.0,0.000175,2]
[347374695,1735744238629,-151.0,0.000175,2]
[347374697,1735744238638,-151.0,0.000175,2]
[347374699,1735744238647,-151.0,0.000175,2]
[347374701,1735744238656,-151.0,0.000175,2]
[347374703,1735744238665,-151.0,0.000175,2]
[347374705,1735744238674,-151.0,0.000175,2]
[347374707,1735744238684,-151.0,0.000175,2]
[347374709,1735744238693,-151.0,0.000175,2]
[347374711,1735744238702,-151.0,0.000175,2]
[347374713,1735744238711,-160796.42256687,0.000175,2]
[347374737,1735744238928,-2734.22570254,0.000175,2]
[347374739,1735744238940,-423.79166931,0.000175,2]
[347374742,1735744238951,-16962.97341154,0.000175,2]
[347374855,1735744240250,-5164.26052375,0.000175,2]
[347374857,1735744240263,-3250.3165154,0.000175,2]
[347374864,1735744240321,-307.51571563,0.000175,2]
[347375196,1735744243404,-19774.89239267,0.000175,2]
[347375198,1735744243416,-448.77767333,0.000175,2]
[347375369,1735744246359,-6459.79537834,0.000175,2]
[347375370,1735744246371,-26139.997855,0.000175,2]
[347375374,1735744246557,-15774.400131,0.000175,2]
[347375376,1735744246571,-18477.6,0.000175,2]
[347375466,1735745432544,-164.592463,0.00013973,2]
[347375468,1735745432553,-267.833632,0.00016235,2]
[347375469,1735745432563,-300.0,0.00016301,2]
[347375471,1735745432574,-20954.6850385,0.00016302,2]
[347375473,1735745432583,-512.882,0.0001663,2]
[347375475,1735745432593,-4208.81856328,0.00017,3]
[347375477,1735745432608,-4506.22779672,0.00017,3]
[347375479,1735745432617,-160.0,0.00017216,3]
[347375480,1735745432626,-231.728,0.0001722,2]
[347375481,1735745432636,-10579.55317666,0.00017248,2]
[347375485,1735745432655,-197.0,0.00017261,2]
[347375487,1735745432666,-197.0,0.00017261,2]
[347375489,1735745432678,-169.0,0.00017261,2]
[347375491,1735745432687,-169.0,0.00017261,2]
[347375493,1735745432698,-213.5654358,0.00017325,2]
[347375495,1735745432708,-153.0,0.00017352,2]
[347375497,1735745432718,-870.84908666,0.000174,2]
[347375499,1735745432731,-1900.60876911,0.000174,2]
[347375501,1735745432741,-152.0,0.00017465,2]
[347375503,1735745432750,-500.0,0.00017473,2]
[347375505,1735745432760,-500.0,0.00017473,2]
[347375507,1735745432771,-500.0,0.00017473,2]
[347375509,1735745432780,-500.0,0.00017473,2]
[347375511,1735745432790,-500.0,0.00017473,2]
[347375513,1735745432801,-500.0,0.00017499,2]
[347375515,1735745432811,-500.0,0.00017499,2]
[347375517,1735745432822,-500.0,0.00017499,2]
[347375519,1735745432832,-500.0,0.00017499,2]
[347375521,1735745432842,-500.0,0.00017499,2]
[347375523,1735745432854,-500.0,0.00017499,2]
[347375525,1735745432863,-373.11341428,0.00017499,2]
[347375527,1735745432873,-199.75433747,0.00017499,2]
[347375529,1735745432883,-2575.68290031,0.000175,2]
[347375531,1735745432894,-44644.72161326,0.000175,2]
[347375533,1735745432904,-436630.9836169,0.000175,2]
[347375537,1735745432962,-13858.44098964,0.000175,2]
[347375539,1735745432974,-309.7139885,0.000175,2]
[347375541,1735745432986,-498.48429257,0.000175,2]
[347375542,1735745432998,-919.0,0.000175,2]
[347375544,1735745433010,-5069.3735126,0.000175,2]
[347375591,1735745438445,-258.4405,0.000175,2]
[347375600,1735745438519,-809938.43356441,0.000175,2]
[347375602,1735745438528,-151.0,0.000175,2]
[347375604,1735745438538,-151.0,0.000175,2]
[347375606,1735745438547,-151.0,0.000175,2]
[347375608,1735745438556,-151.0,0.000175,2]
[347375610,1735745438566,-151.0,0.000175,2]
[347375612,1735745438576,-151.0,0.000175,2]
[347375614,1735745438586,-245.741012,0.000175,2]
[347375617,1735745438595,-151.0,0.000175,2]
[347375620,1735745438605,-151.0,0.000175,2]
[347375622,1735745438615,-151.0,0.000175,2]
[347375624,1735745438624,-151.0,0.000175,2]
[347375626,1735745438634,-151.0,0.000175,2]
[347375628,1735745438643,-151.0,0.000175,2]
[347375631,1735745438653,-286.944355,0.000175,2]
[347375633,1735745438662,-2208.69,0.000175,2]
[347375636,1735745438672,-4650.52,0.000175,2]
[347375638,1735745438681,-325.503678,0.000175,2]
[347375640,1735745438691,-325.503678,0.000175,2]
[347375656,1735745438825,-325.503678,0.000175,2]
[347375658,1735745438836,-325.503678,0.000175,2]
[347375660,1735745438845,-325.503678,0.000175,2]
[347375662,1735745438856,-325.503678,0.000175,2]
[347375664,1735745438865,-157.968171,0.000175,2]
[347375666,1735745438875,-157.968171,0.000175,2]
[347375668,1735745438884,-157.968171,0.000175,2]
[347375670,1735745438893,-157.968171,0.000175,2]
[347375672,1735745438902,-157.968171,0.000175,2]
[347375674,1735745438911,-157.968171,0.000175,2]
[347375676,1735745438920,-464687.50971137,0.000175,2]
[347375678,1735745438932,-931649.52094649,0.000175,2]
[347375680,1735745438944,-8279.48030242,0.000175,2]
[347375683,1735745438955,-1023.21,0.000175,2]
[347375685,1735745438966,-9202.89925,0.000175,2]
[347375687,1735745438977,-538.91827166,0.000175,2]
[347375690,1735745438996,-423722.92752198,0.000175,2]
[347375692,1735745439007,-4024.35375145,0.000175,2]
[347375844,1735745440404,-1752.5,0.000175,2]
[347375849,1735745440477,-8061.7875921,0.000175,2]
[347376166,1735745443636,-271191.26301596,0.000175,2]
[347376174,1735745443707,-3311.6,0.000175,2]
[347376420,1735745446594,-17999.96926456,0.000175,2]
[347376421,1735745446606,-27566.40000001,0.000175,2]
[347376422,1735745446675,-12093.26035814,0.000175,2]
[347376518,1735745459662,1649.87391604,0.00022965,60]
[347376524,1735746062573,-197.72,0.00025,120]
[347376527,1735746570166,-164.592463,0.00013422,2]
[347376528,1735746570187,-107.43438343,0.00013558,2]
[347376530,1735746602619,-164.592463,0.00013695,2]
[347376531,1735746602648,-164.592463,0.00013833,2]
[347376532,1735746602675,-164.592463,0.00013973,2]
[347376533,1735746602701,-267.8336325,0.00015988,2]
[347376534,1735746602727,-196.28302925,0.00016364,2]
[347376535,1735746602755,-246.23309106,0.00016465,2]
[347376536,1735746602793,-1204.12714181,0.00016465,2]
[347376537,1735746602832,-1204.12714181,0.00016465,2]
[347376538,1735746602868,-1204.12714181,0.00016465,2]
[347376539,1735746602911,-1178.7403314,0.00016465,2]
[347376597,1735746632814,-164.592463,0.00013422,2]
[347376599,1735746632824,-164.592463,0.00013558,2]
[347376601,1735746632834,-300.0,0.00016464,2]
[347376603,1735746632844,-19862.64515211,0.00016465,2]
[347376605,1735746632854,-491.404,0.0001663,2]
[347376607,1735746632864,-1338.80026585,0.00017161,2]
[347376609,1735746632873,-171.99,0.00017261,2]
[347376612,1735746632883,-213.5654358,0.00017325,2]
[347376614,1735746632893,-156.3172823,0.000174,2]
[347376616,1735746632903,-233.91760969,0.000174,2]
[347376618,1735746632912,-500.0,0.00017473,2]
[347376620,1735746632921,-615.31913201,0.00017473,2]
[347376622,1735746632931,-464.0,0.0001749,2]
[347376624,1735746632940,-201.28100433,0.00017499,2]
[347376626,1735746632950,-500.0,0.00017499,2]
[347376628,1735746632960,-500.0,0.00017499,2]
[347376630,1735746632970,-500.0,0.00017499,2]
[347376632,1735746632979,-500.0,0.00017499,2]
[347376634,1735746632989,-500.0,0.00017499,2]
[347376636,1735746632998,-494.51999569,0.00017499,2]
[347376638,1735746633008,-500.0,0.00017499,2]
[347376640,1735746633017,-217.98909481,0.00017499,2]
[347376642,1735746633027,-500.0,0.00017499,2]
[347376644,1735746633036,-393.10046911,0.00017499,2]
[347376646,1735746633045,-500.0,0.00017499,2]
[347376648,1735746633055,-500.0,0.00017499,2]
[347376650,1735746633064,-500.0,0.00017499,2]
[347376652,1735746633074,-200.0,0.00017499,2]
[347376654,1735746633087,-650.0,0.00017499,2]
[347376656,1735746633096,-160.10068701,0.00017499,2]
[347376658,1735746633106,-500.0,0.00017499,2]
[347376660,1735746633115,-500.0,0.00017499,2]
[347376662,1735746633125,-500.0,0.00017499,2]
[347376664,1735746633134,-500.0,0.00017499,2]
[347376666,1735746633144,-500.0,0.00017499,2]
[347376668,1735746633154,-499.99999999,0.00017499,2]
[347376670,1735746633171,-500.0,0.00017499,2]
[347376673,1735746633186,-500.0,0.00017499,2]
[347376675,1735746633196,-500.0,0.00017499,2]
[347376676,1735746633205,-500.0,0.00017499,2]
[347376679,1735746633215,-500.0,0.00017499,2]
[347376681,1735746633224,-500.0,0.00017499,2]
[347376683,1735746633234,-500.0,0.00017499,2]
[347376684,1735746633243,-160.1153779,0.00017499,2]
[347376686,1735746633253,-500.46920915,0.00017499,2]
[347376689,1735746633262,-500.0,0.00017499,2]
[347376690,1735746633273,-500.0,0.00017499,2]
[347376692,1735746633283,-500.0,0.00017499,2]
[347376694,1735746633293,-500.0,0.00017499,2]
[347376696,1735746633302,-500.0,0.00017499,2]
[347376698,1735746633311,-500.0,0.00017499,2]
[347376701,1735746633323,-500.0,0.00017499,2]
[347376703,1735746633332,-500.0,0.00017499,2]
[347376705,1735746633342,-500.0,0.00017499,2]
[347376707,1735746633352,-500.0,0.00017499,2]
[347376709,1735746633361,-500.0,0.00017499,2]
[347376711,1735746633371,-500.0,0.00017499,2]
[347376713,1735746633381,-151.0,0.00017499,2]
[347376715,1735746633391,-219172.52553602,0.000175,2]
[347376752,1735746633746,-36930.7163184,0.000175,2]
[347376754,1735746633758,-22541.58400123,0.000175,2]
[347376861,1735746634834,-3333.44463088,0.000175,2]
[347376863,1735746634846,-950.473592,0.000175,2]
[347377183,1735746638627,-164.592463,0.00013288,2]
[347377185,1735746638638,-32661.04593533,0.000175,2]
[347377187,1735746638648,-151.0,0.000175,2]
[347377189,1735746638658,-151.0,0.000175,2]
[347377191,1735746638668,-151.0,0.000175,2]
[347377193,1735746638677,-151.0,0.000175,2]
[347377195,1735746638686,-779.0,0.000175,2]
[347377197,1735746638695,-167.0,0.00017544,2]
[347377199,1735746638705,-167.0,0.00017544,2]
[347377201,1735746638714,-167.0,0.00017544,2]
[347377203,1735746638724,-167.99,0.00017544,2]
[347377206,1735746638734,-160.0,0.00017549,4]
[347377208,1735746638743,-160.0,0.00017882,5]
[347377210,1735746638753,-257.917,0.00017903,2]
[347377212,1735746638763,-2100.0,0.00017903,2]
[347377214,1735746638772,-627.928,0.00017903,2]
[347377216,1735746638782,-2401.0,0.00017903,2]
[347377218,1735746638791,-153.0000001,0.00017918,2]
[347377220,1735746638800,-214.4412851,0.00017918,2]
[347377222,1735746638810,-249.0684459,0.00017918,2]
[347377224,1735746638819,-153.5878957,0.00017918,2]
[347377226,1735746638829,-153.0,0.00017918,2]
[347377228,1735746638838,-153.0,0.00017918,2]
[347377230,1735746638847,-153.0,0.00017918,2]
[347377232,1735746638856,-153.5878957,0.00017918,2]
[347377234,1735746638866,-153.0,0.00017918,2]
[347377236,1735746638875,-214.4412851,0.00017918,2]
[347377238,1735746638885,-153.5878957,0.00017918,2]
[347377240,1735746638894,-153.0,0.00017918,2]
[347377242,1735746638903,-214.4412851,0.00017918,2]
[347377244,1735746638913,-153.5878957,0.00017918,2]
[347377246,1735746638922,-214.4412851,0.00017918,2]
[347377248,1735746638932,-156.31728227,0.00017959,2]
[347377249,1735746638941,-420.0,0.00017993,2]
[347377251,1735746638951,-5164.75756255,0.00018,2]
[347377253,1735746638959,-600.0,0.00018,2]
[347377255,1735746638969,-1000.0,0.00018,18]
[347377257,1735746638979,-1000.0,0.00018021,2]
[347377260,1735746638988,-153.0,0.00018155,2]
[347377272,1735746638997,-153.0,0.00018155,2]
[347377275,1735746639121,-153.0,0.00018155,2]
[347377277,1735746639131,-153.0,0.00018155,2]
[347377279,1735746639140,-153.0,0.00018155,2]
[347377281,1735746639149,-153.0,0.00018155,2]
[347377283,1735746639160,-153.0,0.00018155,2]
[347377285,1735746639169,-153.0,0.00018155,2]
[347377287,1735746639179,-153.0,0.00018155,2]
[347377289,1735746639188,-153.0,0.00018155,2]
[347377291,1735746639197,-153.0,0.00018155,2]
[347377293,1735746639207,-153.0,0.00018155,2]
[347377295,1735746639216,-153.0,0.00018155,2]
[347377297,1735746639226,-153.0,0.00018155,2]
[347377299,1735746639235,-153.0,0.00018155,2]
[347377301,1735746639245,-153.0,0.00018155,2]
[347377303,1735746639254,-153.0,0.00018155,2]
[347377305,1735746639263,-153.0,0.00018155,2]
[347377307,1735746639273,-153.0,0.00018155,2]
[347377309,1735746639282,-500.0,0.00018157,2]
[347377311,1735746639291,-500.0,0.00018157,2]
[347377313,1735746639301,-183.229,0.0001817,2]
[347377315,1735746639310,-233.91760965,0.00018174,2]
[347377317,1735746639319,-160.0,0.00018215,6]
[347377319,1735746639328,-150.4,0.00018321,3]
[347377321,1735746639337,-151.31818585,0.00018468,2]
[347377323,1735746639347,-150.6184883,0.00018468,2]
[347377325,1735746639357,-150.3617643,0.00018468,2]
[347377328,1735746639366,-278.27457481,0.00018468,2]
[347377329,1735746639376,-150.24,0.00018468,2]
[347377332,1735746639385,-151.01874537,0.00018468,2]
[347377334,1735746639395,-151.47718585,0.00018468,2]
[347377336,1735746639404,-150.7160779,0.00018468,2]
[347377338,1735746639416,-150.91284014,0.00018468,2]
[347377340,1735746639425,-150.24,0.00018468,2]
[347377342,1735746639434,-150.24,0.00018468,2]
[347377343,1735746639443,-150.24,0.00018468,2]
[347377346,1735746639452,-372.77202884,0.000185,2]
[347377348,1735746639463,-372.77202879,0.000185,2]
[347377350,1735746639472,-372.77202879,0.000185,2]
[347377352,1735746639481,-372.77202879,0.000185,2]
[347377354,1735746639490,-156.31728227,0.00018519,2]
[347377356,1735746639500,-372.77202879,0.00018541,2]
[347377358,1735746639509,-160.0,0.00018548,7]
[347377360,1735746639519,-303.30286924,0.00018548,5]
[347377362,1735746639528,-1652.50750827,0.00018555,2]
[347377364,1735746639537,-150.4,0.00018573,4]
[347377366,1735746639546,-150.0,0.000186,2]
[347377368,1735746639555,-154.0,0.0001864,2]
[347377370,1735746639564,-154.0,0.0001864,2]
[347377371,1735746639574,-154.0,0.0001864,2]
[347377372,1735746639584,-154.0,0.0001864,2]
[347377373,1735746639594,-154.0,0.0001864,2]
[347377374,1735746639603,-154.0,0.0001864,2]
[347377375,1735746639612,-154.0,0.0001864,2]
[347377376,1735746639622,-154.0,0.0001864,2]
[347377377,1735746639631,-154.0,0.0001864,2]
[347377378,1735746639641,-238.02,0.0001864,2]
[347377379,1735746639651,-151.0,0.000187,2]
[347377380,1735746639663,-400.000001,0.0001874,2]
[347377381,1735746639672,-150.24,0.00018742,2]
[347377382,1735746639682,-150.24,0.00018742,2]
[347377383,1735746639691,-202.24369425,0.00018742,2]
[347377384,1735746639702,-185.382,0.00018746,2]
[347377385,1735746639711,-3444.14142788,0.000188,2]
[347377386,1735746639721,-151.0,0.000188,2]
[347377387,1735746639730,-151.0,0.000188,2]
[347377388,1735746639740,-150.4,0.00018826,4]
[347377389,1735746639750,-372.77202879,0.00018826,2]
[347377390,1735746639760,-233.91760965,0.00018949,2]
[347377391,1735746639769,-42050.67515447,0.00019,2]
[347377392,1735746639779,-561.74,0.00019,2]
[347377393,1735746639788,-500.0,0.00019,2]
[347377395,1735746639798,-500.0,0.00019,2]
[347377397,1735746639808,-500.0,0.00019,2]
[347377399,1735746639817,-500.0,0.00019,2]
[347377401,1735746639827,-500.0,0.00019,2]
[347377403,1735746639836,-252.0,0.00019,2]
[347377405,1735746639845,-1000.0,0.00019,19]
[347377407,1735746639854,-175.67252727,0.00019,2]
[347377409,1735746639863,-151.0,0.00019,2]
[347377411,1735746639873,-151.0,0.00019,2]
[347377413,1735746639882,-200.65814944,0.00019016,2]
[347377414,1735746639892,-203.48486073,0.00019016,2]
[347377416,1735746639901,-1500.0,0.00019022,2]
[347377418,1735746639911,-150.4,0.00019078,4]
[347377421,1735746639921,-156.31728227,0.00019078,2]
[347377423,1735746639931,-462.16069224,0.00019078,2]
[347377424,1735746639941,-32565.83555518,0.00019078,2]
[347377427,1735746639952,-372.77202879,0.00019112,2]
[347377428,1735746639962,-53954.358188,0.00019133,2]
[347377431,1735746639972,-500.0,0.00019173,2]
[347377433,1735746639982,-500.3686553,0.00019173,2]
[347377435,1735746639991,-500.0,0.00019173,2]
[347377437,1735746640001,-500.0,0.00019173,2]
[347377438,1735746640010,-422.04708801,0.00019173,2]
[347377441,1735746640020,-243.11187731,0.00019177,2]
[347377442,1735746640030,-474.05515553,0.00019177,2]
[347377445,1735746640039,-159.608969,0.00019178,2]
[347377447,1735746640050,-151.0,0.00019178,2]
[347377449,1735746640059,-151.0,0.00019178,2]
[347377451,1735746640070,-168.405005,0.00019178,2]
[347377453,1735746640082,-168.405005,0.00019178,2]
[347377455,1735746640093,-168.405005,0.00019178,2]
[347377457,1735746640103,-168.405005,0.00019178,2]
[347377459,1735746640113,-151.0,0.00019178,2]
[347377461,1735746640123,-151.0,0.00019178,2]
[347377464,1735746640133,-151.0,0.00019178,2]
[347377467,1735746640143,-151.0,0.00019178,2]
[347377469,1735746640152,-151.0,0.00019178,2]
[347377471,1735746640164,-221.289391,0.00019178,2]
[347377473,1735746640173,-151.0,0.00019178,2]
[347377475,1735746640183,-151.0,0.00019178,2]
[347377477,1735746640192,-302.450178,0.00019178,2]
[347377479,1735746640202,-302.450178,0.00019178,2]
[347377481,1735746640211,-302.450178,0.00019178,2]
[347377483,1735746640220,-302.450178,0.00019178,2]
[347377485,1735746640229,-151.0,0.00019178,2]
[347377487,1735746640239,-151.0,0.00019178,2]
[347377489,1735746640249,-151.0,0.00019178,2]
[347377491,1735746640259,-151.0,0.00019178,2]
[347377493,1735746640268,-500.0,0.00019178,2]
[347377495,1735746640278,-151.0,0.00019178,2]
[347377497,1735746640288,-151.0,0.00019178,2]
[347377499,1735746640297,-186.347087,0.00019178,2]
[347377501,1735746640308,-186.347087,0.00019178,2]
[347377503,1735746640317,-186.347087,0.00019178,2]
[347377505,1735746640327,-186.347087,0.00019178,2]
[347377507,1735746640336,-151.0,0.00019178,2]
[347377509,1735746640346,-151.0,0.00019178,2]
[347377511,1735746640355,-950.428526,0.00019178,2]
[347377512,1735746640364,-950.428526,0.00019178,2]
[347377514,1735746640374,-950.428526,0.00019178,2]
[347377516,1735746640383,-950.428526,0.00019178,2]
[347377518,1735746640392,-500.0,0.00019178,2]
[347377520,1735746640402,-710.35,0.00019178,2]
[347377522,1735746640418,-500.0,0.00019178,2]
[347377525,1735746640427,-500.0,0.00019178,2]
[347377527,1735746640437,-500.0,0.00019178,2]
[347377528,1735746640447,-495.40703927,0.00019178,2]
[347377531,1735746640457,-266.18337029,0.00019178,2]
[347377533,1735746640466,-500.24047302,0.00019178,2]
[347377535,1735746640476,-320.79362068,0.00019178,2]
[347377537,1735746640485,-500.81546027,0.00019178,2]
[347377539,1735746640495,-500.61682899,0.00019178,2]
[347377541,1735746640504,-151.0,0.00019178,2]
[347377543,1735746640514,-558.46825229,0.00019178,2]
[347377545,1735746640524,-151.0,0.00019178,2]
[347377547,1735746640534,-10711.19,0.00019178,2]
[347377549,1735746640544,-507.04536,0.00019178,2]
[347377551,1735746640553,-500.0,0.00019178,2]
[347377553,1735746640563,-500.0,0.00019178,2]
[347377555,1735746640572,-500.0,0.00019178,2]
[347377557,1735746640582,-500.0,0.00019178,2]
[347377559,1735746640591,-500.0,0.00019178,2]
[347377561,1735746640602,-500.0,0.00019178,2]
[347377563,1735746640613,-500.0,0.00019178,2]
[347377565,1735746640623,-500.0,0.00019178,2]
[347377567,1735746640633,-151.0,0.00019178,2]
[347377569,1735746640643,-151.0,0.00019178,2]
[347377571,1735746640655,-500.0,0.00019178,2]
[347377573,1735746640667,-504.10355821,0.00019178,2]
[347377575,1735746640676,-151.0,0.00019178,2]
[347377577,1735746640687,-151.0,0.00019178,2]
[347377579,1735746640696,-500.0,0.00019178,2]
[347377581,1735746640706,-500.0,0.00019178,2]
[347377593,1735746640808,-500.0,0.00019178,2]
[347377595,1735746640818,-502.66470104,0.00019178,2]
[347377597,1735746640827,-500.0,0.00019178,2]
[347377599,1735746640837,-500.47102507,0.00019178,2]
[347377600,1735746640845,-500.0,0.00019178,2]
[347377602,1735746640855,-550.49097973,0.00019178,2]
[347377604,1735746640864,-151.0,0.00019178,2]
[347377607,1735746640874,-151.0,0.00019178,2]
[347377609,1735746640883,-500.0,0.00019178,2]
[347377611,1735746640892,-417.55789877,0.00019178,2]
[347377613,1735746640902,-309.98673106,0.00019178,2]
[347377614,1735746640913,-833.35,0.00019178,2]
[347377616,1735746640923,-500.0,0.00019178,2]
[347377618,1735746640932,-500.0,0.00019178,2]
[347377620,1735746640941,-500.0,0.00019178,2]
[347377622,1735746640950,-500.79764464,0.00019178,2]
[347377624,1735746640959,-500.0,0.00019178,2]
[347377626,1735746640969,-500.0,0.00019178,2]
[347377628,1735746640978,-500.0,0.00019178,2]
[347377630,1735746640987,-500.0,0.00019178,2]
[347377632,1735746640997,-500.0,0.00019178,2]
[347377634,1735746641006,-501.59012217,0.00019178,2]
[347377636,1735746641016,-500.0,0.00019178,2]
[347377638,1735746641025,-500.0,0.00019178,2]
[347377640,1735746641034,-500.0,0.00019178,2]
[347377642,1735746641043,-500.0,0.00019178,2]
[347377644,1735746641053,-500.0,0.00019178,2]
[347377646,1735746641063,-500.0,0.00019178,2]
[347377648,1735746641073,-500.61405082,0.00019178,2]
[347377650,1735746641086,-500.0,0.00019178,2]
[347377652,1735746641096,-500.0,0.00019178,2]
[347377654,1735746641105,-500.0,0.00019178,2]
[347377656,1735746641114,-500.0,0.00019178,2]
[347377658,1735746641125,-500.0,0.00019178,2]
[347377660,1735746641134,-1000.0,0.00019178,2]
[347377662,1735746641143,-500.0,0.00019178,2]
[347377664,1735746641153,-500.0,0.00019178,2]
[347377666,1735746641166,-500.0,0.00019178,2]
[347377668,1735746641175,-500.0,0.00019178,2]
[347377670,1735746641185,-500.0,0.00019178,2]
[347377672,1735746641194,-572.31,0.00019178,2]
[347377674,1735746641203,-500.0,0.00019178,2]
[347377676,1735746641212,-500.0,0.00019178,2]
[347377678,1735746641222,-501.86166244,0.00019178,2]
[347377680,1735746641231,-500.0,0.00019178,2]
[347377682,1735746641240,-501.93356791,0.00019178,2]
[347377684,1735746641250,-500.0,0.00019178,2]
[347377686,1735746641259,-523.74914516,0.00019178,2]
[347377688,1735746641269,-500.0,0.00019178,2]
[347377690,1735746641278,-500.0,0.00019178,2]
[347377692,1735746641288,-500.0,0.00019178,2]
[347377694,1735746641297,-500.0,0.00019178,2]
[347377696,1735746641307,-500.0,0.00019178,2]
[347377698,1735746641316,-500.0,0.00019178,2]
[347377700,1735746641325,-500.0,0.00019178,2]
[347377702,1735746641335,-500.0,0.00019178,2]
[347377704,1735746641344,-500.0,0.00019178,2]
[347377706,1735746641353,-500.0,0.00019178,2]
[347377708,1735746641362,-500.0,0.00019178,2]
[347377710,1735746641372,-500.0,0.00019178,2]
[347377712,1735746641381,-516.42741851,0.00019178,2]
[347377714,1735746641390,-500.0,0.00019178,2]
[347377716,1735746641400,-500.0,0.00019178,2]
[347377718,1735746641409,-500.0,0.00019178,2]
[347377720,1735746641418,-500.0,0.00019178,2]
[347377722,1735746641428,-501.3182311,0.00019178,2]
[347377724,1735746641437,-500.0,0.00019178,2]
[347377726,1735746641447,-500.0,0.00019178,2]
[347377728,1735746641456,-500.0,0.00019178,2]
[347377730,1735746641466,-501.75577543,0.00019178,2]